bitfinex-derivatives/quotes_BTCF0:USTF0_20241224
["timestamp","ask_amount","ask_price","bid_price","bid_amount"]
[1735009565348,1.553341,93856.0,93841.0,0.41415]
[1735009565558,0.053341,93856.0,93847.0,0.38080128]
[1735009566451,0.056341,93856.0,93847.0,0.38080128]
[1735009566944,0.05335,93843.0,93830.0,0.0936]
[1735009567257,0.3608,93840.0,93830.0,0.20267234]
[1735009567447,0.3608,93840.0,93837.0,0.053353]
[1735009567950,0.3608,93840.0,93838.0,0.053353]
[1735009568153,0.3608,93840.0,93830.0,0.0936]
[1735009568347,0.414152,93840.0,93832.0,0.053356]
[1735009568747,0.414152,93840.0,93830.0,0.0936]
[1735009569051,0.414152,93840.0,93838.0,0.001]
[1735009569246,0.414152,93840.0,93838.0,0.002]
[1735009569442,0.414152,93840.0,93838.0,0.001]
[1735009569857,0.414152,93840.0,93834.0,0.053355]
[1735009570256,0.414152,93840.0,93838.0,0.001]
[1735009570859,0.0882,93839.0,93838.0,0.001]
[1735009571751,0.0882,93839.0,93838.0,0.002]
[1735009572056,0.41471201,93840.0,93838.0,0.001]
[1735009572263,0.414152,93840.0,93838.0,0.001]
[1735009572558,0.053354,93837.0,93834.0,0.003]
[1735009572756,0.053354,93837.0,93832.0,0.053356]
[1735009574848,0.053354,93837.0,93832.0,0.057356]
[1735009575052,0.3608,93840.0,93832.0,0.004]
[1735009575245,0.053356,93834.0,93832.0,0.006]
[1735009576158,0.053356,93834.0,93832.0,0.004]
[1735009576362,0.053356,93834.0,93832.0,0.006]
[1735009578350,0.053356,93834.0,93832.0,0.004]
[1735009578554,0.053356,93834.0,93832.0,0.006]
[1735009579061,0.414156,93834.0,93832.0,0.006]
[1735009583963,0.3608,93834.0,93832.0,0.059356]
[1735009584263,0.12751889,93840.0,93838.0,0.053353]
[1735009584462,0.12751889,93840.0,93839.0,0.1763]
[1735009584760,0.12751889,93841.0,93839.0,0.1763]
[1735009585159,0.18087089,93841.0,93839.0,0.1763]
[1735009585355,0.18087089,93841.0,93839.0,0.0842]
[1735009585555,0.12751889,93841.0,93838.0,0.002]
[1735009585862,0.053353,93839.0,93838.0,0.002]
[1735009586067,0.053353,93839.0,93838.0,0.001]
[1735009586267,0.3608,93845.0,93832.0,0.01011592]
[1735009586268,0.053354,93837.0,93832.0,0.01011592]
[1735009586454,0.3608,93845.0,93827.0,0.00159866]
[1735009586455,0.10907234,93842.0,93827.0,0.00159866]
[1735009586669,0.05335,93844.0,93838.0,0.053353]
[1735009587067,0.18086889,93844.0,93827.0,0.00159866]
[1735009587255,0.12751889,93844.0,93842.0,0.053351]
[1735009587456,0.12751889,93844.0,93843.0,0.0897]
[1735009588152,0.15957388,93853.0,93843.0,0.3897]
[1735009588352,0.15957388,93853.0,93852.0,0.053345]
[1735009588558,0.12748171,93854.0,93853.0,0.053344]
[1735009590164,0.053338,93865.0,93858.0,0.053342]
[1735009590365,0.053338,93865.0,93850.0,0.10907234]
[1735009590554,0.3608,93868.0,93850.0,0.10907234]
[1735009590755,0.15957388,93875.0,93873.0,0.053333]
[1735009591168,0.15957388,93875.0,93874.0,0.084]
[1735009591559,0.16117224,93881.0,93874.0,0.137333]
[1735009592461,0.16117224,93881.0,93874.0,0.140333]
[1735009592859,0.00159836,93881.0,93874.0,0.091]
[1735009593070,0.00159836,93881.0,93875.0,0.053332]
[1735009594362,0.00159836,93881.0,93875.0,0.003]
[1735009594666,0.414131,93877.0,93875.0,0.003]
[1735009594865,0.0843,93876.0,93875.0,0.005]
[1735009595368,0.0843,93876.0,93858.0,0.0917]
[1735009595369,0.0843,93876.0,93858.0,0.076037]
[1735009595571,1.5843,93876.0,93858.0,0.076037]
[1735009595770,0.0843,93876.0,93858.0,0.08632767]
[1735009595973,0.0843,93876.0,93866.0,0.053337]
[1735009596867,0.0843,93876.0,93867.0,0.053336]
[1735009597072,0.0843,93876.0,93875.0,0.001]
[1735009597366,0.0843,93876.0,93875.0,0.005]
[1735009597760,0.0843,93876.0,93868.0,0.053336]
[1735009598169,0.0843,93876.0,93866.0,0.005]
[1735009598370,0.0843,93876.0,93872.0,0.053333]
[1735009599176,0.0843,93876.0,93875.0,0.003]
[1735009599370,0.41469101,93877.0,93875.0,0.003]
[1735009599672,0.414131,93877.0,93875.0,0.003]
[1735009600269,0.414131,93877.0,93860.0,0.09140534]
[1735009600870,0.414131,93877.0,93872.0,0.005]
[1735009601765,0.414131,93877.0,93872.0,0.001]
[1735009602075,0.414131,93877.0,93867.0,0.053337]
[1735009602273,0.3608,93877.0,93867.0,0.053337]
[1735009602574,0.3608,93877.0,93872.0,0.003]
[1735009602769,0.053333,93874.0,93872.0,0.003]
[1735009602973,0.3608,93877.0,93872.0,0.003]
[1735009603776,0.3608,93877.0,93872.0,0.004]
[1735009603976,0.3608,93877.0,93872.0,0.001]
[1735009604671,0.053332,93876.0,93872.0,0.002]
[1735009605174,0.053337,93867.0,93864.0,0.053338]
[1735009605381,0.414138,93865.0,93859.0,0.053341]
[1735009605570,0.0888,93864.0,93859.0,0.053341]
[1735009605883,0.0888,93864.0,93854.0,0.18994873]
[1735009606173,0.3608,93857.0,93854.0,0.18994873]
[1735009606773,0.3608,93857.0,93833.0,0.0874]
[1735009606774,0.3608,93857.0,93839.0,0.18994873]
[1735009607076,0.3608,93857.0,93841.0,0.01063717]
[1735009607272,0.3608,93857.0,93847.0,0.10907234]
[1735009607480,0.3608,93857.0,93855.0,0.053343]
[1735009607678,0.3718,93857.0,93855.0,0.053343]
[1735009610883,0.3718,93857.0,93848.0,0.053348]
[1735009611070,0.3718,93857.0,93850.0,0.053346]
[1735009611378,0.3718,93857.0,93855.0,0.01022143]
[1735009613380,0.3718,93857.0,93855.0,0.06356443]
[1735009614180,0.3718,93857.0,93855.0,0.01022143]
[1735009614383,0.3718,93857.0,93843.0,0.18994873]
[1735009614783,0.3718,93857.0,93843.0,0.24329873]
[1735009615183,0.3718,93857.0,93844.0,0.053349]
[1735009615381,0.3718,93857.0,93846.0,0.053348]
[1735009616486,0.3718,93857.0,93847.0,0.053347]
[1735009616694,0.3718,93857.0,93848.0,0.06396348]
[1735009617388,0.3718,93857.0,93849.0,0.053347]
[1735009618585,0.3718,93857.0,93855.0,0.053343]
[1735009620080,0.3718,93857.0,93848.0,0.01061648]
[1735009620485,0.3718,93857.0,93848.0,0.06396348]
[1735009620893,0.3718,93857.0,93839.0,0.18994873]
[1735009620894,0.3718,93857.0,93840.0,0.053352]
[1735009621190,0.05335,93844.0,93840.0,0.053352]
[1735009621387,0.05335,93844.0,93840.0,0.06401563]
[1735009621785,0.05335,93844.0,93840.0,0.01066363]
[1735009622087,0.3608,93846.0,93844.0,0.053349]
[1735009623788,0.3618,93846.0,93844.0,0.053349]
[1735009624483,0.3638,93846.0,93844.0,0.053349]
[1735009629280,0.003,93846.0,93844.0,0.053349]
[1735009631075,0.003,93846.0,93845.0,0.25429692]
[1735009631477,0.3608,93857.0,93856.0,0.053343]
[1735009631699,0.15957388,93867.0,93850.0,0.3608]
[1735009631991,0.15957388,93867.0,93865.0,0.053337]
[1735009632185,0.15957388,93867.0,93866.0,0.0834]
[1735009632987,0.16117237,93876.0,93866.0,0.0834]
[1735009633887,0.16117237,93876.0,93874.0,0.053333]
[1735009634791,0.00159849,93876.0,93874.0,0.053333]
[1735009635294,0.00159849,93876.0,93874.0,0.004]
[1735009635883,0.00159849,93876.0,93874.0,0.057333]
[1735009636494,0.00159849,93876.0,93874.0,0.058333]
[1735009640994,0.45316001,93888.0,93874.0,0.058333]
[1735009640995,0.3608,93888.0,93887.0,0.053326]
[1735009641187,0.15957388,93892.0,93877.0,0.10907234]
[1735009641495,0.15957388,93892.0,93890.0,0.053324]
[1735009642297,0.0867,93897.0,93890.0,0.053324]
[1735009642591,0.0867,93897.0,93880.0,0.19090625]
[1735009642796,0.0867,93897.0,93890.0,0.053324]
[1735009643000,0.0867,93897.0,93892.0,0.053323]
[1735009643989,0.0877,93897.0,93892.0,0.053323]
[1735009644392,0.0867,93897.0,93892.0,0.053323]
[1735009644593,0.0887,93897.0,93892.0,0.053323]
[1735009644793,0.0887,93897.0,93880.0,0.19190625]
[1735009644990,0.0887,93897.0,93893.0,0.053322]
[1735009645403,0.0887,93897.0,93896.0,0.053321]
[1735009645991,0.003,93897.0,93896.0,0.053321]
[1735009646300,0.001,93897.0,93896.0,0.053321]
[1735009646495,0.002,93897.0,93896.0,0.053321]
[1735009646702,0.001,93897.0,93896.0,0.057321]
[1735009646892,0.52037388,93917.0,93910.0,0.053313]
[1735009647099,0.52037388,93917.0,93896.0,0.004]
[1735009647100,0.52093389,93917.0,93896.0,0.004]
[1735009647400,0.3608,93909.0,93904.0,0.053316]
[1735009647793,0.053319,93900.0,93896.0,0.012]
[1735009648101,0.3608,93897.0,93896.0,0.004]
[1735009648892,0.3608,93897.0,93894.0,0.01056711]
[1735009649088,0.3608,93897.0,93891.0,0.053323]
[1735009649303,0.3608,93897.0,93888.0,0.28270625]
[1735009649495,0.3608,93897.0,93892.0,0.05340117]
[1735009649696,0.3608,93897.0,93896.0,0.003]
[1735009650501,0.3608,93897.0,93892.0,0.05340117]
[1735009650699,0.3608,93897.0,93892.0,0.06366406]
[1735009651003,0.3618,93897.0,93892.0,0.06366406]
[1735009651500,0.3618,93897.0,93896.0,0.008]
[1735009652202,0.3618,93897.0,93896.0,0.011]
[1735009652903,0.3618,93897.0,93896.0,0.003]
[1735009653498,0.3618,93897.0,93896.0,0.011]
[1735009657304,0.3618,93897.0,93896.0,0.064321]
[1735009658299,0.3618,93897.0,93896.0,0.011]
[1735009662927,0.52137388,93897.0,93896.0,0.011]
[1735009664223,0.52137388,93897.0,93896.0,0.064321]
[1735009664529,0.41397671,93897.0,93896.0,0.064321]
[1735009665829,0.3618,93897.0,93896.0,0.064321]
[1735009666829,0.001,93897.0,93896.0,0.07466588]
[1735009667227,0.12762253,93901.0,93900.0,0.053319]
[1735009667419,0.15952816,93909.0,93908.0,0.053314]
[1735009667616,0.15952816,93909.0,93908.0,0.414114]
[1735009668728,0.15952816,93909.0,93908.0,0.417114]
[1735009669227,0.3608,93919.0,93916.0,0.053308]
[1735009670220,0.3608,93919.0,93909.0,0.10907234]
[1735009670221,0.3608,93919.0,93910.0,0.1900453]
[1735009670422,0.3618,93919.0,93910.0,0.1900453]
[1735009670830,0.3618,93919.0,93916.0,0.053308]
[1735009672224,0.3618,93919.0,93916.0,0.06357585]
[1735009672418,0.3618,93919.0,93908.0,0.5508453]
[1735009672625,0.053311,93912.0,93908.0,0.1900453]
[1735009672934,0.0919,93918.0,93908.0,0.20042769]
[1735009673133,0.0919,93918.0,93909.0,0.053312]
[1735009673437,0.3618,93919.0,93908.0,0.37118239]
[1735009673625,0.3618,93919.0,93909.0,0.10907234]
[1735009673826,0.3618,93919.0,93918.0,0.053307]
[1735009675134,0.3618,93919.0,93909.0,0.08837934]
[1735009675332,0.3608,93919.0,93908.0,0.37118239]
[1735009675634,0.001,93918.0,93915.0,0.053309]
[1735009675929,0.053302,93927.0,93908.0,0.37118239]
[1735009676120,0.0919,93928.0,93908.0,0.37118239]
[1735009676121,0.001,93919.0,93918.0,0.053307]
[1735009676528,0.0919,93928.0,93923.0,0.053304]
[1735009676724,0.0919,93928.0,93924.0,0.053303]
[1735009677132,0.005,93927.0,93924.0,0.053303]
[1735009678631,0.002,93927.0,93924.0,0.053303]
[1735009679332,0.007,93927.0,93924.0,0.053303]
[1735009680128,0.007,93927.0,93912.0,0.067403]
[1735009680333,0.3608,93924.0,93908.0,0.01038239]
[1735009680539,0.007,93927.0,93922.0,0.053305]
[1735009683328,0.3608,93924.0,93915.0,0.053309]
[1735009683733,0.05331,93913.0,93906.0,0.01077465]
[1735009683933,0.053311,93912.0,93904.0,0.1900453]
[1735009684336,0.053311,93911.0,93904.0,0.1900453]
[1735009684533,0.0936,93910.0,93904.0,0.20084652]
[1735009684732,0.0936,93910.0,93904.0,0.01080122]
[1735009685040,0.3608,93916.0,93914.0,0.053309]
[1735009685243,0.3608,93916.0,93902.0,0.1713543]
[1735009685434,0.3608,93916.0,93905.0,0.053314]
[1735009685634,0.3608,93916.0,93910.0,0.053311]
[1735009685832,0.3608,93916.0,93904.0,0.002]
[1735009686033,0.3608,93916.0,93911.0,0.053311]
[1735009687445,0.45627927,93916.0,93911.0,0.054311]
[1735009688342,0.45627927,93916.0,93914.0,0.053309]
[1735009688343,0.09547927,93916.0,93914.0,0.053309]
[1735009688947,0.09547927,93916.0,93915.0,0.2769]
[1735009690140,0.09547927,93916.0,93915.0,0.2029]
[1735009690539,0.3608,93925.0,93915.0,0.2029]
[1735009690740,0.3608,93925.0,93924.0,0.053304]
[1735009691848,0.3608,93925.0,93924.0,0.054304]
[1735009692047,0.09547927,93932.0,93924.0,0.3648]
[1735009692241,0.09547927,93932.0,93931.0,0.0533]
[1735009693140,0.09547927,93933.0,93931.0,0.0533]
[1735009693940,0.001,93932.0,93931.0,0.0533]
[1735009694540,0.09647927,93933.0,93931.0,0.0533]
[1735009694743,0.001,93933.0,93931.0,0.0533]
[1735009695050,0.001,93932.0,93925.0,0.053303]
[1735009695249,0.001,93932.0,93931.0,0.0533]
[1735009695751,0.0970767,93935.0,93934.0,0.053298]
[1735009696454,0.00159743,93935.0,93934.0,0.053298]
[1735009697747,0.00359743,93935.0,93934.0,0.053298]
[1735009697946,0.00459743,93935.0,93934.0,0.053298]
[1735009699243,0.00459743,93935.0,93934.0,0.414098]
[1735009699755,0.00359743,93935.0,93934.0,0.417098]
[1735009700350,0.00359743,93935.0,93934.0,0.414098]
[1735009700550,0.01159743,93935.0,93934.0,0.415098]
[1735009701953,0.01159743,93935.0,93934.0,0.500898]
[1735009702759,0.01159743,93935.0,93934.0,0.51148158]
[1735009704965,0.01159743,93935.0,93934.0,0.42568158]
[1735009705355,0.01159743,93935.0,93934.0,0.06488158]
[1735009705752,0.01159743,93935.0,93928.0,0.25429692]
[1735009705956,0.053301,93929.0,93928.0,0.25429692]
[1735009706163,0.053305,93921.0,93920.0,0.31744055]
[1735009706463,0.414105,93921.0,93920.0,0.31744055]
[1735009706862,0.414105,93921.0,93913.0,0.053309]
[1735009707062,0.053306,93920.0,93913.0,0.053309]
[1735009708464,0.14887995,93920.0,93913.0,0.057309]
[1735009708767,0.14887995,93920.0,93913.0,0.06799946]
[1735009709067,0.0907,93919.0,93913.0,0.06799946]
[1735009710361,0.0907,93919.0,93913.0,0.06399946]
[1735009710566,0.0917,93919.0,93913.0,0.06499946]
[1735009712865,0.0907,93919.0,93913.0,0.06399946]
[1735009713165,0.0917,93919.0,93913.0,0.06499946]
[1735009715173,0.053311,93914.0,93913.0,0.001]
[1735009715771,0.146811,93914.0,93913.0,0.001]
[1735009716165,0.3608,93915.0,93913.0,0.001]
[1735009716874,0.3608,93915.0,93912.0,0.053312]
[1735009717070,0.004,93914.0,93912.0,0.053312]
[1735009717481,0.3608,93915.0,93912.0,0.053312]
[1735009717784,0.09560518,93914.0,93912.0,0.053312]
[1735009718385,0.09760518,93914.0,93912.0,0.053312]
[1735009718777,0.09760518,93914.0,93901.0,0.01065819]
[1735009718977,0.053314,93909.0,93901.0,0.06397619]
[1735009720190,0.053314,93909.0,93905.0,0.35904]
[1735009720593,0.3608,93906.0,93905.0,0.35904]
[1735009722586,0.053315,93907.0,93905.0,0.35904]
[1735009722783,0.053315,93907.0,93905.0,0.35804]
[1735009722991,0.053315,93907.0,93905.0,0.35904]
[1735009724385,0.053315,93907.0,93905.0,0.001]
[1735009725284,0.0898,93906.0,93905.0,0.001]
[1735009726991,0.0898,93906.0,93903.0,0.053317]
[1735009727181,0.0898,93906.0,93905.0,0.001]
[1735009729293,0.053315,93907.0,93905.0,0.001]
[1735009730284,0.3608,93906.0,93905.0,0.001]
[1735009730490,0.3608,93906.0,93895.0,0.00159743]
[1735009730491,0.053321,93896.0,93895.0,0.00159743]
[1735009730686,0.414121,93896.0,93895.0,0.00159743]
[1735009731287,0.053323,93893.0,93892.0,7.917e-05]
[1735009731487,0.414123,93893.0,93892.0,7.917e-05]
[1735009732092,0.053331,93878.0,93870.0,0.38080128]
[1735009732296,0.414131,93878.0,93871.0,0.01041179]
[1735009732596,0.414131,93878.0,93870.0,0.38080128]
[1735009732797,0.414131,93878.0,93868.0,0.053337]
[1735009732798,0.053333,93875.0,93868.0,0.053337]
[1735009733690,0.3608,93869.0,93868.0,0.06415351]
[1735009735398,0.3608,93869.0,93868.0,0.06515351]
[1735009736101,0.3608,93871.0,93868.0,0.06515351]
[1735009739188,0.3608,93871.0,93869.0,0.053336]
[1735009741401,0.053331,93880.0,93870.0,0.053336]
[1735009741697,0.053331,93880.0,93872.0,0.053335]
[1735009741905,0.053331,93880.0,93873.0,0.053334]
[1735009742694,0.09556114,93883.0,93868.0,0.01081651]
[1735009742891,0.09556114,93883.0,93864.0,0.3608]
[1735009743091,0.09556114,93883.0,93877.0,0.053332]
[1735009744223,0.3618,93882.0,93877.0,0.053332]
[1735009744499,0.3618,93882.0,93868.0,0.001]
[1735009744500,0.001,93882.0,93880.0,0.05333]
[1735009744693,0.001,93882.0,93881.0,0.1774]
[1735009745397,0.003,93882.0,93881.0,0.1774]
[1735009745906,0.001,93882.0,93881.0,0.1774]
[1735009746108,0.005,93882.0,93881.0,0.1774]
[1735009746604,0.09556114,93892.0,93891.0,0.053324]
[1735009747605,0.3608,93894.0,93891.0,0.053324]
[1735009748306,0.001,93892.0,93891.0,0.053324]
[1735009748497,0.003,93892.0,93891.0,0.053324]
[1735009748899,0.001,93892.0,93891.0,0.053324]
[1735009749705,0.003,93892.0,93891.0,0.053324]
[1735009750709,0.09756114,93892.0,93891.0,0.053324]
[1735009751307,0.09556114,93892.0,93891.0,0.053324]
[1735009751604,0.10156114,93892.0,93891.0,0.053324]
[1735009751798,0.006,93892.0,93891.0,0.053324]
[1735009752404,0.002,93892.0,93891.0,0.053324]
[1735009752606,0.006,93892.0,93891.0,0.053324]
[1735009753112,0.10156114,93892.0,93891.0,0.053324]
[1735009755104,0.09756114,93892.0,93891.0,0.053324]
[1735009755304,0.09956114,93892.0,93891.0,0.053324]
[1735009756009,0.09856114,93892.0,93891.0,0.053324]
[1735009757310,0.003,93892.0,93891.0,0.053324]
[1735009758701,0.002,93892.0,93891.0,0.053324]
[1735009759011,0.003,93892.0,93891.0,0.053324]
[1735009763010,0.003,93892.0,93891.0,0.414124]
[1735009764217,0.001,93892.0,93891.0,0.414124]
[1735009764405,0.003,93892.0,93891.0,0.414124]
[1735009765016,0.002,93892.0,93891.0,0.414124]
[1735009765213,0.003,93892.0,93891.0,0.414124]
[1735009767309,0.003,93892.0,93891.0,0.591124]
[1735009770513,0.003,93892.0,93891.0,0.84521819]
[1735009771615,0.003,93892.0,93891.0,0.591124]
[1735009772623,1e-08,93893.0,93891.0,0.591124]
[1735009773124,1e-08,93893.0,93892.0,0.21938739]
[1735009773917,0.00200001,93893.0,93892.0,0.21938739]
[1735009774826,0.00200001,93893.0,93892.0,0.44442841]
[1735009775330,0.09564076,93914.0,93894.0,0.177]
[1735009775529,0.09564076,93914.0,93906.0,0.3608]
[1735009776416,0.09564076,93914.0,93909.0,0.25404071]
[1735009777029,0.00259761,93911.0,93910.0,0.053313]
[1735009777422,0.00159761,93911.0,93910.0,0.053313]
[1735009777724,0.00259761,93911.0,93910.0,0.053313]
[1735009777920,0.00359761,93911.0,93910.0,0.053313]
[1735009778125,0.00359761,93911.0,93910.0,0.056313]
[1735009778727,0.00359761,93911.0,93910.0,0.057313]
[1735009780024,0.00359761,93911.0,93910.0,0.004]
[1735009780335,0.00359761,93911.0,93907.0,0.04124071]
[1735009780634,0.053313,93910.0,93907.0,0.04124071]
[1735009781340,0.053313,93910.0,93901.0,0.053318]
[1735009781532,0.3608,93907.0,93901.0,0.053318]
[1735009781738,0.18,93906.0,93901.0,0.053318]
[1735009782044,0.18,93906.0,93902.0,0.053318]
[1735009782840,0.233316,93906.0,93898.0,0.05332]
[1735009783041,0.3608,93899.0,93898.0,0.05332]
[1735009784343,0.09570149,93900.0,93898.0,0.05332]
[1735009784549,0.005,93899.0,93898.0,0.05332]
[1735009785838,0.3658,93899.0,93891.0,0.053324]
[1735009786044,0.41912,93899.0,93891.0,0.053324]
[1735009786434,0.41612,93899.0,93891.0,0.053324]
[1735009787140,0.09570149,93895.0,93891.0,0.053324]
[1735009788240,0.09670149,93895.0,93891.0,0.053324]
[1735009788441,0.09570149,93893.0,93891.0,0.053324]
[1735009789546,0.09570149,93892.0,93891.0,0.053324]
[1735009790750,0.09870149,93892.0,93891.0,0.053324]
[1735009790948,0.003,93892.0,93891.0,0.053324]
[1735009791140,0.004,93892.0,93891.0,0.053324]
[1735009796351,0.003,93892.0,93891.0,0.053324]
[1735009796544,0.001,93892.0,93891.0,0.053324]
[1735009796746,0.004,93892.0,93891.0,0.053324]
[1735009805754,0.003,93892.0,93891.0,0.053324]
[1735009806357,0.003,93892.0,93887.0,0.00159745]
[1735009806555,0.3608,93891.0,93887.0,0.00159745]
[1735009806958,0.053325,93890.0,93887.0,0.00159745]
[1735009807956,0.09570149,93889.0,93887.0,0.00159745]
[1735009809064,0.10070149,93889.0,93887.0,0.00159745]
[1735009809465,0.10070149,93889.0,93888.0,0.19073052]
[1735009809657,0.007,93889.0,93888.0,0.19073052]
[1735009810671,0.2724,93889.0,93888.0,0.18513123]
[1735009811163,0.2724,93889.0,93871.0,0.053335]
[1735009811361,0.414131,93879.0,93872.0,0.053335]
[1735009811566,0.053332,93878.0,93873.0,0.053334]
[1735009812062,0.3608,93879.0,93877.0,0.053332]
[1735009812366,0.007,93889.0,93888.0,0.053326]
[1735009812567,0.002,93889.0,93888.0,0.053326]
[1735009812867,0.19116656,93892.0,93891.0,0.053324]
[1735009813064,0.19116656,93892.0,93891.0,0.230224]
[1735009813266,0.42440423,93920.0,93910.0,0.053313]
[1735009814461,0.15966901,93919.0,93910.0,0.053313]
[1735009815170,0.00259761,93911.0,93902.0,0.158617]
[1735009816058,0.00259761,93911.0,93904.0,0.053316]
[1735009816567,0.00259761,93911.0,93905.0,0.053316]
[1735009816869,0.00259761,93911.0,93906.0,0.053315]
[1735009817166,0.09576604,93909.0,93906.0,0.053315]
[1735009818262,0.09676604,93909.0,93908.0,0.053314]
[1735009818458,0.001,93909.0,93908.0,0.053314]
[1735009819264,0.09836365,93911.0,93908.0,0.053314]
[1735009819265,0.09576604,93911.0,93910.0,0.230213]
[1735009819664,0.09576604,93911.0,93910.0,0.053313]
[1735009820068,0.09576604,93913.0,93910.0,0.053313]
[1735009820459,0.09576604,93913.0,93908.0,9.172e-05]
[1735009820972,0.001,93911.0,93909.0,0.053314]
[1735009821759,0.001,93913.0,93909.0,0.053314]
[1735009822473,0.001,93911.0,93909.0,0.053314]
[1735009823865,0.001,93913.0,93909.0,0.053314]
[1735009824370,0.143608,93919.0,93909.0,0.053314]
[1735009824371,0.09576604,93916.0,93909.0,0.053314]
[1735009824673,0.001,93911.0,93909.0,0.053314]
[1735009825066,0.001,93913.0,93908.0,9.172e-05]
[1735009825273,0.001,93913.0,93910.0,0.053313]
[1735009825473,0.001,93913.0,93908.0,9.172e-05]
[1735009825663,0.414113,93911.0,93908.0,9.172e-05]
[1735009826759,0.414113,93911.0,93908.0,0.05340572]
[1735009827164,0.414113,93911.0,93909.0,0.053314]
[1735009827370,0.3608,93911.0,93909.0,0.053314]
[1735009827772,0.3618,93911.0,93909.0,0.053314]
[1735009828275,0.3608,93911.0,93909.0,0.053314]
[1735009828574,0.3618,93911.0,93909.0,0.053314]
[1735009830375,0.001,93911.0,93909.0,0.053314]
[1735009840977,0.001,93911.0,93908.0,9.172e-05]
[1735009840978,0.414113,93910.0,93908.0,9.172e-05]
[1735009841180,0.680213,93910.0,93908.0,9.172e-05]
[1735009842382,0.6279,93910.0,93908.0,9.172e-05]
[1735009842684,0.6279,93910.0,93908.0,0.05340572]
[1735009842881,0.001,93910.0,93908.0,0.05340572]
[1735009843089,0.001,93911.0,93910.0,0.053313]
[1735009843279,0.001,93910.0,93909.0,0.053314]
[1735009843880,0.001,93910.0,93909.0,0.30756903]
[1735009844281,0.12779955,93912.0,93909.0,0.30756903]
[1735009844487,0.001,93910.0,93909.0,0.30756903]
[1735009844884,0.12879955,93910.0,93909.0,0.30756903]
[1735009845290,0.12879955,93910.0,93909.0,0.23356903]
[1735009845495,0.48959955,93910.0,93909.0,0.23356903]
[1735009846193,0.48959955,93910.0,93908.0,9.172e-05]
[1735009846194,0.053314,93909.0,93908.0,9.172e-05]
[1735009846390,0.138514,93909.0,93908.0,9.172e-05]
[1735009847491,0.139514,93909.0,93908.0,9.172e-05]
[1735009847693,0.1913506,93909.0,93908.0,9.172e-05]
[1735009850396,0.053323,93893.0,93891.0,0.00159752]
[1735009850595,0.3608,93892.0,93891.0,0.00159752]
[1735009851093,0.6263,93892.0,93891.0,0.00159752]
[1735009851396,0.62639172,93892.0,93891.0,0.00159752]
[1735009852493,0.63239172,93892.0,93891.0,0.00159752]
[1735009853000,0.63539172,93892.0,93891.0,0.00159752]
[1735009854194,0.36989172,93892.0,93891.0,0.00159752]
[1735009856601,0.36989172,93892.0,93873.0,0.49075089]
[1735009856791,0.053331,93879.0,93874.0,0.053333]
[1735009857595,0.3608,93884.0,93874.0,0.053333]
[1735009857596,0.053332,93878.0,93874.0,0.053333]
[1735009861801,0.053332,93878.0,93873.0,0.1732]
[1735009862899,0.3608,93884.0,93873.0,0.1732]
[1735009863209,0.09568223,93889.0,93883.0,0.053329]
[1735009863510,0.053326,93888.0,93877.0,0.053332]
[1735009863802,0.053326,93888.0,93873.0,0.1732]
[1735009864199,0.053326,93888.0,93879.0,0.053331]
[1735009864597,0.053326,93888.0,93880.0,0.05333]
[1735009864804,0.003,93889.0,93879.0,0.1769]
[1735009864998,0.003,93889.0,93885.0,0.053327]
[1735009865195,0.36089172,93892.0,93885.0,0.053327]
[1735009865400,0.001,93888.0,93885.0,0.053327]
[1735009865595,0.002,93888.0,93885.0,0.053327]
[1735009865805,0.001,93888.0,93885.0,0.053327]
[1735009866008,0.001,93888.0,93886.0,0.0881]
[1735009866200,0.001,93889.0,93886.0,0.141427]
[1735009867307,0.45917396,93892.0,93886.0,0.0881]
[1735009867607,0.45857395,93892.0,93889.0,0.053325]
[1735009867799,0.45657395,93892.0,93889.0,0.053325]
[1735009868503,0.46057395,93892.0,93889.0,0.053325]
[1735009868705,0.10177395,93892.0,93889.0,0.053325]
[1735009869104,0.10377395,93892.0,93889.0,0.053325]
[1735009869406,0.00909172,93892.0,93889.0,0.053325]
[1735009869805,0.36989172,93892.0,93889.0,0.053325]
[1735009870712,0.09568223,93891.0,93889.0,0.053325]
[1735009872314,0.006,93891.0,93889.0,0.053325]
[1735009872499,0.009,93891.0,93889.0,0.053325]
[1735009877019,0.062325,93891.0,93889.0,0.053325]
[1735009877210,0.009,93891.0,93883.0,0.053329]
[1735009877412,0.05333,93881.0,93880.0,0.31755089]
[1735009878318,0.35333,93881.0,93880.0,0.03855089]
[1735009878515,0.053334,93873.0,93849.0,0.44426816]
[1735009878718,0.774944,93857.0,93849.0,0.44490816]
[1735009879313,0.053347,93850.0,93849.0,0.00064]
[1735009879510,0.72220001,93857.0,93844.0,0.20195774]
[1735009879715,0.41415,93845.0,93844.0,0.20195774]
[1735009881122,0.41415,93845.0,93843.0,0.00064]
[1735009881327,0.053356,93835.0,93827.0,0.08972]
[1735009881511,0.3608,93831.0,93827.0,0.089]
[1735009882010,0.3608,93831.0,93828.0,0.21304]
[1735009882621,0.3618,93831.0,93828.0,0.21304]
[1735009882920,0.3618,93831.0,93829.0,0.053359]
[1735009884215,0.3618,93831.0,93828.0,0.21304]
[1735009884522,0.053359,93829.0,93828.0,0.21304]
[1735009886012,0.054359,93829.0,93828.0,0.21304]
[1735009886213,0.001,93829.0,93821.0,0.00159883]
[1735009886512,0.414163,93822.0,93821.0,0.00159883]
[1735009886829,0.3608,93822.0,93821.0,0.00159883]
[1735009887120,0.3608,93822.0,93821.0,0.21463883]
[1735009888023,0.3618,93822.0,93821.0,0.21463883]
[1735009888221,0.3628,93822.0,93821.0,0.21463883]